fUSD/lending_fUSD_20260614
["ID","MTS","AMOUNT","RATE_DAILY","PERIOD"]
[425061367,1781447555000,-1801.16,0.00030958,8]
[425061370,1781447555000,-500.0,0.00030958,8]
[425061364,1781447555000,-1296.71,0.00030958,8]
[425061371,1781447555000,-1343.56,0.00030958,8]
[425061365,1781447555000,-557.28,0.00030958,8]
[425061366,1781447555000,-2890.54,0.00030958,8]
[425061369,1781447555000,-1828.15,0.00030958,8]
[425061373,1781447555000,-1214.13,0.00030958,8]
[425061372,1781447555000,-1463.18,0.00030958,8]
[425061374,1781447555000,-595.31,0.00030958,8]
[425061376,1781447555000,-1866.64,0.00030958,8]
[425061377,1781447555000,-500.0,0.00030958,8]
[425061378,1781447555000,-500.0,0.00030958,8]
[425061375,1781447555000,-500.0,0.00030958,8]
[425061322,1781447555000,-500.0,0.00030958,8]
[425061357,1781447555000,-25282.9,0.00030958,8]
[425061356,1781447555000,-500.0,0.00030958,8]
[425061362,1781447555000,-2026.58,0.00030958,8]
[425061355,1781447555000,-563.46,0.00030958,8]
[425061353,1781447555000,-500.0,0.00030958,8]
[425061338,1781447555000,-1682.54,0.00030958,8]
[425061327,1781447555000,-2931.64,0.00030958,8]
[425061329,1781447555000,-500.0,0.00030958,8]
[425061331,1781447555000,-528.8,0.00030958,8]
[425061330,1781447555000,-742.57,0.00030958,8]
[425061332,1781447555000,-3706.06,0.00030958,8]
[425061335,1781447555000,-658.84,0.00030958,8]
[425061334,1781447555000,-518.74,0.00030958,8]
[425061333,1781447555000,-500.0,0.00030958,8]
[425061339,1781447555000,-610.83,0.00030958,8]
[425061341,1781447555000,-636.66,0.00030958,8]
[425061336,1781447555000,-500.0,0.00030958,8]
[425061342,1781447555000,-528.7,0.00030958,8]
[425061340,1781447555000,-1282.28,0.00030958,8]
[425061345,1781447555000,-4001.43,0.00030958,8]
[425061344,1781447555000,-1109.22,0.00030958,8]
[425061343,1781447555000,-540.32,0.00030958,8]
[425061346,1781447555000,-1749.66,0.00030958,8]
[425061349,1781447555000,-1023.6,0.00030958,8]
[425061348,1781447555000,-508.2,0.00030958,8]
[425061347,1781447555000,-1000.0,0.00030958,8]
[425061351,1781447555000,-500.0,0.00030958,8]
[425061350,1781447555000,-1407.31,0.00030958,8]
[425061416,1781447556000,-1326.3,0.00030958,8]
[425061420,1781447556000,-1599.83,0.00030958,8]
[425061423,1781447556000,-1648.13,0.00030958,8]
[425061418,1781447556000,-707.22,0.00030958,8]
[425061419,1781447556000,-640.65,0.00030958,8]
[425061408,1781447556000,-500.0,0.00030958,8]
[425061414,1781447556000,-500.0,0.00030958,8]
[425061415,1781447556000,-1057.08,0.00030958,8]
[425061410,1781447556000,-2061.13,0.00030958,8]
[425061409,1781447556000,-500.0,0.00030958,8]
[425061425,1781447556000,-861.57,0.00030958,8]
[425061417,1781447556000,-500.0,0.00030958,8]
[425061424,1781447556000,-577.21,0.00030958,8]
[425061429,1781447556000,-800.7,0.00030958,8]
[425061422,1781447556000,-955.12,0.00030958,8]
[425061427,1781447556000,-500.0,0.00030958,8]
[425061428,1781447556000,-2104.15,0.00030958,8]
[425061437,1781447556000,-500.0,0.00030958,8]
[425061426,1781447556000,-500.0,0.00030958,8]
[425061438,1781447556000,-922.21,0.00030958,8]
[425061433,1781447556000,-921.05,0.00030958,8]
[425061434,1781447556000,-500.0,0.00030958,8]
[425061430,1781447556000,-500.0,0.00030958,8]
[425061432,1781447556000,-500.0,0.00030958,8]
[425061431,1781447556000,-1609.77,0.00030958,8]
[425061407,1781447556000,-12728.02,0.00030958,8]
[425061421,1781447556000,-5289.14,0.00030958,8]
[425061406,1781447556000,-822.75,0.00030958,8]
[425061383,1781447556000,-763.45,0.00030958,8]
[425061403,1781447556000,-839.66,0.00030958,8]
[425061380,1781447556000,-577.98,0.00030958,8]
[425061381,1781447556000,-500.0,0.00030958,8]
[425061382,1781447556000,-5973.16,0.00030958,8]
[425061435,1781447556000,-500.0,0.00030958,8]
[425061385,1781447556000,-500.0,0.00030958,8]
[425061384,1781447556000,-1090.91,0.00030958,8]
[425061387,1781447556000,-3216.2,0.00030958,8]
[425061388,1781447556000,-2562.95,0.00030958,8]
[425061386,1781447556000,-3655.13,0.00030958,8]
[425061389,1781447556000,-1440.23,0.00030958,8]
[425061392,1781447556000,-605.58,0.00030958,8]
[425061391,1781447556000,-500.0,0.00030958,8]
[425061393,1781447556000,-500.0,0.00030958,8]
[425061390,1781447556000,-1108.18,0.00030958,8]
[425061395,1781447556000,-2020.73,0.00030958,8]
[425061394,1781447556000,-500.0,0.00030958,8]
[425061398,1781447556000,-1357.49,0.00030958,8]
[425061399,1781447556000,-500.0,0.00030958,8]
[425061397,1781447556000,-558.54912481,0.00030958,8]
[425061396,1781447556000,-1129.02,0.00030958,2]
[425061400,1781447556000,-878.66,0.00030958,8]
[425061402,1781447556000,-529.83,0.00030958,8]
[425061404,1781447556000,-707.83,0.00030958,8]
[425061412,1781447556000,-1297.07,0.00030958,8]
[425061401,1781447556000,-500.0,0.00030958,8]
[425061413,1781447556000,-649.93,0.00030958,8]
[425061411,1781447556000,-500.0,0.00030958,8]
[425061405,1781447556000,-900.28,0.00030958,8]
[425061436,1781447556000,-1133.48,0.00030958,8]
[425061379,1781447556000,-1413.1,0.00030958,8]
[425061446,1781447556000,-1698.66,0.00030958,8]
[425061470,1781447556000,-233.0,0.00031021,30]
[425061473,1781447556000,-152.0,0.00031028,30]
[425061487,1781447556000,-22500.0,0.00031125,2]
[425061486,1781447556000,-12500.0,0.00031125,2]
[425061476,1781447556000,-168.0,0.00031028,30]
[425061475,1781447556000,-154.0,0.00031028,30]
[425061479,1781447556000,-689.0,0.00031032,30]
[425061478,1781447556000,-284.0,0.00031032,30]
[425061477,1781447556000,-324.0,0.00031028,30]
[425061481,1781447556000,-350.0,0.00031032,30]
[425061484,1781447556000,-1402.89,0.000311,7]
[425061482,1781447556000,-190.0,0.00031032,30]
[425061485,1781447556000,-350.0,0.0003112,18]
[425061480,1781447556000,-3189.0,0.00031032,30]
[425061483,1781447556000,-914.0,0.00031063,30]
[425061491,1781447556000,-250.97316127,0.00031197,2]
[425061488,1781447556000,-157.59783793,0.00031148,2]
[425061490,1781447556000,-222.834,0.00031195,28]
[425061494,1781447556000,-964.65229976,0.0003121,7]
[425061497,1781447556000,-667.37624601,0.00031231,8]
[425061492,1781447556000,-1105.73653955,0.0003121,7]
[425061495,1781447556000,-1005.42938285,0.0003121,7]
[425061489,1781447556000,-2974.366,0.00031195,28]
[425061493,1781447556000,-1145.02984896,0.0003121,7]
[425061498,1781447556000,-1928.24,0.00031232,8]
[425061496,1781447556000,-667.37624602,0.00031231,8]
[425061439,1781447556000,-500.0,0.00030958,8]
[425061472,1781447556000,-503.0,0.00031028,30]
[425061474,1781447556000,-410.0,0.00031028,30]
[425061499,1781447556000,-2287.07,0.00031232,8]
[425061465,1781447556000,-350.0,0.00031,30]
[425061444,1781447556000,-741.37,0.00030958,8]
[425061450,1781447556000,-1434.77,0.00030958,8]
[425061440,1781447556000,-326.74456028,0.00030958,8]
[425061443,1781447556000,-500.0,0.00030958,8]
[425061441,1781447556000,-500.0,0.00030958,8]
[425061442,1781447556000,-837.18,0.00030958,8]
[425061451,1781447556000,-862.64,0.00030958,8]
[425061445,1781447556000,-5871.97,0.00030958,8]
[425061471,1781447556000,-298.8808056,0.00031027,120]
[425061448,1781447556000,-500.0,0.00030958,8]
[425061449,1781447556000,-1401.83,0.00030958,8]
[425061463,1781447556000,-12500.0,0.00031,2]
[425061453,1781447556000,-150.0,0.00030959,2]
[425061452,1781447556000,-1106.5,0.00030958,8]
[425061447,1781447556000,-500.0,0.00030958,8]
[425061456,1781447556000,-2500.0,0.00031,10]
[425061454,1781447556000,-1791.15813918,0.0003099,2]
[425061467,1781447556000,-150.0,0.00031011,2]
[425061466,1781447556000,-4000.0,0.00031,3]
[425061469,1781447556000,-167.0,0.00031021,30]
[425061468,1781447556000,-200.0,0.00031016,4]
[425061459,1781447556000,-2500.0,0.00031,2]
[425061464,1781447556000,-22500.0,0.00031,2]
[425061460,1781447556000,-25000.0,0.00031,2]
[425061461,1781447556000,-2500.0,0.00031,2]
[425061457,1781447556000,-10000.0,0.00031,2]
[425061458,1781447556000,-5796.41970301,0.00031,3]
[425061455,1781447556000,-50000.0,0.00031,3]
[425061462,1781447556000,-1568.53,0.00031,7]
[425061545,1781447557000,-514.54,0.00031232,8]
[425061537,1781447557000,-700.76,0.00031232,8]
[425061544,1781447557000,-500.0,0.00031232,8]
[425061538,1781447557000,-500.0,0.00031232,8]
[425061532,1781447557000,-1573.21,0.00031232,8]
[425061536,1781447557000,-500.0,0.00031232,8]
[425061534,1781447557000,-738.99,0.00031232,8]
[425061535,1781447557000,-1067.78,0.00031232,8]
[425061531,1781447557000,-1007.63,0.00031232,8]
[425061530,1781447557000,-985.3,0.00031232,8]
[425061540,1781447557000,-500.0,0.00031232,8]
[425061539,1781447557000,-500.0,0.00031232,8]
[425061558,1781447557000,-800.55,0.00031232,8]
[425061543,1781447557000,-1285.32,0.00031232,8]
[425061541,1781447557000,-1224.99,0.00031232,8]
[425061546,1781447557000,-926.37,0.00031232,8]
[425061547,1781447557000,-578.78,0.00031232,8]
[425061549,1781447557000,-951.06,0.00031232,8]
[425061550,1781447557000,-735.2,0.00031232,8]
[425061548,1781447557000,-203.42575749,0.00031232,8]
[425061552,1781447557000,-500.0,0.00031232,8]
[425061555,1781447557000,-1121.81,0.00031232,8]
[425061553,1781447557000,-553.9,0.00031232,8]
[425061559,1781447557000,-682.21,0.00031232,8]
[425061533,1781447557000,-388.12764236,0.00031232,8]
[425061542,1781447557000,-508.34,0.00031232,8]
[425061529,1781447557000,-1200.69,0.00031232,8]
[425061514,1781447557000,-925.25,0.00031232,8]
[425061527,1781447557000,-801.17,0.00031232,8]
[425061551,1781447557000,-500.0,0.00031232,8]
[425061500,1781447557000,-334.25579141,0.00031232,8]
[425061512,1781447557000,-630.1,0.00031232,8]
[425061502,1781447557000,-1290.4,0.00031232,8]
[425061505,1781447557000,-500.0,0.00031232,8]
[425061503,1781447557000,-706.5,0.00031232,8]
[425061504,1781447557000,-957.59,0.00031232,8]
[425061501,1781447557000,-569.09,0.00031232,8]
[425061506,1781447557000,-510.86,0.00031232,8]
[425061510,1781447557000,-500.0,0.00031232,8]
[425061507,1781447557000,-500.0,0.00031232,8]
[425061509,1781447557000,-1013.37,0.00031232,8]
[425061508,1781447557000,-500.0,0.00031232,8]
[425061511,1781447557000,-512.97,0.00031232,8]
[425061513,1781447557000,-558.29,0.00031232,8]
[425061518,1781447557000,-1280.28,0.00031232,8]
[425061517,1781447557000,-552.72,0.00031232,8]
[425061516,1781447557000,-500.0,0.00031232,8]
[425061519,1781447557000,-542.62,0.00031232,8]
[425061515,1781447557000,-1526.43,0.00031232,8]
[425061523,1781447557000,-685.22,0.00031232,8]
[425061524,1781447557000,-614.99,0.00031232,8]
[425061522,1781447557000,-500.0,0.00031232,8]
[425061521,1781447557000,-500.0,0.00031232,8]
[425061520,1781447557000,-500.0,0.00031232,8]
[425061526,1781447557000,-500.0,0.00031232,8]
[425061525,1781447557000,-736.33,0.00031232,8]
[425061528,1781447557000,-1300.69,0.00031232,8]
[425061554,1781447557000,-524.27,0.00031232,8]
[425061571,1781447557000,-608.15,0.00031232,8]
[425061557,1781447557000,-648.16,0.00031232,8]
[425061593,1781447557000,-1015.25,0.00031232,8]
[425061591,1781447557000,-1604.32,0.00031232,8]
[425061594,1781447557000,-664.01,0.00031232,8]
[425061596,1781447557000,-500.0,0.00031232,8]
[425061597,1781447557000,-196.43432045,0.00031232,8]
[425061606,1781447557000,-500.0,0.00031232,8]
[425061595,1781447557000,-1047.49,0.00031232,8]
[425061605,1781447557000,-899.88,0.00031232,8]
[425061602,1781447557000,-508.13,0.00031232,8]
[425061607,1781447557000,-671.88,0.00031232,8]
[425061601,1781447557000,-766.55,0.00031232,8]
[425061604,1781447557000,-586.53,0.00031232,8]
[425061592,1781447557000,-500.0,0.00031232,8]
[425061603,1781447557000,-1099.99,0.00031232,8]
[425061600,1781447557000,-1207.41,0.00031232,8]
[425061599,1781447557000,-773.85,0.00031232,8]
[425061556,1781447557000,-1031.86,0.00031232,8]
[425061617,1781447557000,-554.77,0.00031232,8]
[425061608,1781447557000,-1425.15,0.00031232,8]
[425061610,1781447557000,-1398.15,0.00031232,8]
[425061611,1781447557000,-520.02,0.00031232,8]
[425061612,1781447557000,-841.95,0.00031232,8]
[425061615,1781447557000,-500.0,0.00031232,8]
[425061614,1781447557000,-500.0,0.00031232,8]
[425061616,1781447557000,-1132.03,0.00031232,8]
[425061613,1781447557000,-500.0,0.00031232,8]
[425061598,1781447557000,-1037.86,0.00031232,8]
[425061589,1781447557000,-500.0,0.00031232,8]
[425061609,1781447557000,-1195.63,0.00031232,8]
[425061586,1781447557000,-532.02,0.00031232,8]
[425061590,1781447557000,-470.93900273,0.00031232,8]
[425061560,1781447557000,-546.49,0.00031232,8]
[425061561,1781447557000,-500.0,0.00031232,8]
[425061570,1781447557000,-500.0,0.00031232,8]
[425061562,1781447557000,-1400.43,0.00031232,8]
[425061569,1781447557000,-500.0,0.00031232,8]
[425061564,1781447557000,-1274.35,0.00031232,8]
[425061568,1781447557000,-500.0,0.00031232,8]
[425061565,1781447557000,-500.0,0.00031232,8]
[425061567,1781447557000,-500.0,0.00031232,8]
[425061566,1781447557000,-688.19,0.00031232,8]
[425061572,1781447557000,-1189.57,0.00031232,8]
[425061575,1781447557000,-500.0,0.00031232,8]
[425061563,1781447557000,-500.0,0.00031232,8]
[425061583,1781447557000,-585.33217287,0.00031232,8]
[425061588,1781447557000,-500.0,0.00031232,8]
[425061578,1781447557000,-623.59087714,0.00031232,8]
[425061584,1781447557000,-500.0,0.00031232,8]
[425061587,1781447557000,-500.0,0.00031232,8]
[425061582,1781447557000,-500.0,0.00031232,8]
[425061579,1781447557000,-672.85,0.00031232,8]
[425061585,1781447557000,-1281.05,0.00031232,8]
[425061580,1781447557000,-1053.08,0.00031232,8]
[425061576,1781447557000,-1452.09,0.00031232,8]
[425061573,1781447557000,-1222.28,0.00031232,8]
[425061574,1781447557000,-500.0,0.00031232,8]
[425061581,1781447557000,-523.86059941,0.00031232,8]
[425061577,1781447557000,-500.0,0.00031232,8]
[425061638,1781447558000,-790.09,0.00031232,8]
[425061648,1781447558000,-1022.53,0.00031232,8]
[425061634,1781447558000,-815.68,0.00031232,8]
[425061635,1781447558000,-500.0,0.00031232,8]
[425061641,1781447558000,-520.69,0.00031232,8]
[425061642,1781447558000,-500.0,0.00031232,8]
[425061645,1781447558000,-500.0,0.00031232,8]
[425061647,1781447558000,-500.0,0.00031232,8]
[425061656,1781447558000,-689.06,0.00031232,8]
[425061655,1781447558000,-1254.7,0.00031232,8]
[425061652,1781447558000,-573.76,0.00031232,8]
[425061649,1781447558000,-543.72,0.00031232,8]
[425061651,1781447558000,-1193.0,0.00031232,8]
[425061646,1781447558000,-500.0,0.00031232,8]
[425061654,1781447558000,-500.0,0.00031232,8]
[425061639,1781447558000,-534.02,0.00031232,8]
[425061650,1781447558000,-597.42,0.00031232,8]
[425061632,1781447558000,-500.0,0.00031232,8]
[425061621,1781447558000,-510.28,0.00031232,8]
[425061636,1781447558000,-556.37,0.00031232,8]
[425061618,1781447558000,-607.25,0.00031232,8]
[425061619,1781447558000,-569.28852842,0.00031232,7]
[425061620,1781447558000,-638.31,0.00031232,8]
[425061624,1781447558000,-806.88,0.00031232,8]
[425061627,1781447558000,-853.99,0.00031232,8]
[425061622,1781447558000,-500.0,0.00031232,8]
[425061623,1781447558000,-173.82313121,0.00031232,8]
[425061625,1781447558000,-500.0,0.00031232,8]
[425061626,1781447558000,-500.0,0.00031232,8]
[425061631,1781447558000,-500.0,0.00031232,8]
[425061629,1781447558000,-2153.84,0.00031232,8]
[425061628,1781447558000,-544.6,0.00031232,8]
[425061630,1781447558000,-866.85,0.00031232,8]
[425061643,1781447558000,-648.3,0.00031232,8]
[425061633,1781447558000,-500.0,0.00031232,8]
[425061644,1781447558000,-500.0,0.00031232,8]
[425061640,1781447558000,-500.0,0.00031232,8]
[425061637,1781447558000,-500.0,0.00031232,8]
[425061653,1781447558000,-500.0,0.00031232,8]
[425061663,1781447558000,-500.0,0.00031232,8]
[425061667,1781447558000,-500.0,0.00031232,8]
[425061682,1781447558000,-1199.94,0.00031232,8]
[425061681,1781447558000,-529.52,0.00031232,8]
[425061684,1781447558000,-611.86,0.00031232,8]
[425061685,1781447558000,-500.0,0.00031232,8]
[425061686,1781447558000,-1220.66,0.00031232,8]
[425061687,1781447558000,-1992.83,0.00031232,8]
[425061683,1781447558000,-536.09,0.00031232,8]
[425061688,1781447558000,-500.0,0.00031232,8]
[425061689,1781447558000,-1285.7,0.00031232,8]
[425061691,1781447558000,-694.6,0.00031232,8]
[425061692,1781447558000,-500.0,0.00031232,8]
[425061694,1781447558000,-500.0,0.00031232,8]
[425061693,1781447558000,-500.0,0.00031232,8]
[425061696,1781447558000,-694.97,0.00031232,8]
[425061697,1781447558000,-638.67,0.00031232,8]
[425061695,1781447558000,-577.76,0.00031232,8]
[425061658,1781447558000,-1746.88,0.00031232,8]
[425061676,1781447558000,-378.24891298,0.00031232,8]
[425061677,1781447558000,-500.0,0.00031232,8]
[425061690,1781447558000,-500.0,0.00031232,8]
[425061679,1781447558000,-714.38,0.00031232,8]
[425061678,1781447558000,-500.0,0.00031232,8]
[425061666,1781447558000,-500.0,0.00031232,8]
[425061668,1781447558000,-639.31,0.00031232,8]
[425061657,1781447558000,-500.0,0.00031232,8]
[425061660,1781447558000,-500.0,0.00031232,8]
[425061662,1781447558000,-872.27,0.00031232,8]
[425061659,1781447558000,-723.54,0.00031232,8]
[425061665,1781447558000,-500.0,0.00031232,8]
[425061661,1781447558000,-784.28,0.00031232,8]
[425061669,1781447558000,-623.88,0.00031232,8]
[425061671,1781447558000,-533.2,0.00031232,8]
[425061680,1781447558000,-373.94934316,0.00031232,8]
[425061670,1781447558000,-504.6,0.00031232,8]
[425061672,1781447558000,-715.69,0.00031232,8]
[425061674,1781447558000,-892.45,0.00031232,8]
[425061673,1781447558000,-1046.11,0.00031232,8]
[425061664,1781447558000,-559.91,0.00031232,8]
[425061675,1781447558000,-566.53,0.00031232,8]
[425061733,1781447559000,-578.24,0.00031232,8]
[425061732,1781447559000,-500.0,0.00031232,8]
[425061724,1781447559000,-932.78,0.00031232,8]
[425061731,1781447559000,-1329.36,0.00031232,8]
[425061728,1781447559000,-836.13,0.00031232,8]
[425061727,1781447559000,-500.0,0.00031232,8]
[425061730,1781447559000,-500.0,0.00031232,8]
[425061734,1781447559000,-500.0,0.00031232,8]
[425061726,1781447559000,-500.0,0.00031232,8]
[425061729,1781447559000,-500.0,0.00031232,8]
[425061735,1781447559000,-987.41,0.00031232,8]
[425061744,1781447559000,-500.0,0.00031232,8]
[425061737,1781447559000,-500.0,0.00031232,8]
[425061739,1781447559000,-500.0,0.00031232,8]
[425061741,1781447559000,-500.0,0.00031232,8]
[425061738,1781447559000,-500.0,0.00031232,8]
[425061740,1781447559000,-747.07,0.00031232,8]
[425061742,1781447559000,-1199.11,0.00031232,8]
[425061745,1781447559000,-1016.47,0.00031232,8]
[425061753,1781447559000,-500.0,0.00031232,8]
[425061754,1781447559000,-1068.73,0.00031232,8]
[425061746,1781447559000,-500.0,0.00031232,8]
[425061725,1781447559000,-1530.48,0.00031232,8]
[425061736,1781447559000,-500.0,0.00031232,8]
[425061723,1781447559000,-556.38,0.00031232,8]
[425061704,1781447559000,-648.66,0.00031232,8]
[425061720,1781447559000,-500.0,0.00031232,8]
[425061698,1781447559000,-681.48,0.00031232,8]
[425061699,1781447559000,-1019.53,0.00031232,8]
[425061700,1781447559000,-500.0,0.00031232,8]
[425061701,1781447559000,-500.0,0.00031232,8]
[425061703,1781447559000,-606.2,0.00031232,8]
[425061747,1781447559000,-1038.13,0.00031232,8]
[425061702,1781447559000,-770.14,0.00031232,8]
[425061706,1781447559000,-500.0,0.00031232,8]
[425061708,1781447559000,-1086.15,0.00031232,8]
[425061711,1781447559000,-752.56,0.00031232,8]
[425061705,1781447559000,-1236.08,0.00031232,8]
[425061709,1781447559000,-500.0,0.00031232,8]
[425061707,1781447559000,-500.0,0.00031232,8]
[425061710,1781447559000,-1794.38,0.00031232,8]
[425061713,1781447559000,-500.0,0.00031232,8]
[425061712,1781447559000,-500.0,0.00031232,8]
[425061716,1781447559000,-1362.07,0.00031232,8]
[425061714,1781447559000,-500.0,0.00031232,8]
[425061715,1781447559000,-500.0,0.00031232,8]
[425061717,1781447559000,-1214.87,0.00031232,8]
[425061719,1781447559000,-712.15,0.00031232,8]
[425061721,1781447559000,-500.0,0.00031232,8]
[425061718,1781447559000,-658.12,0.00031232,8]
[425061722,1781447559000,-710.6,0.00031232,8]
[425061748,1781447559000,-519.48,0.00031232,8]
[425061743,1781447559000,-579.71,0.00031232,8]
[425061752,1781447559000,-565.44,0.00031232,8]
[425061778,1781447559000,-1150.58,0.00031232,8]
[425061784,1781447559000,-500.0,0.00031232,8]
[425061781,1781447559000,-532.23,0.00031232,8]
[425061786,1781447559000,-500.0,0.00031232,8]
[425061783,1781447559000,-564.84,0.00031232,8]
[425061785,1781447559000,-648.15,0.00031232,8]
[425061787,1781447559000,-2000.0,0.00031232,2]
[425061788,1781447559000,-835.21,0.00031232,8]
[425061789,1781447559000,-500.0,0.00031232,8]
[425061790,1781447559000,-500.0,0.00031232,8]
[425061791,1781447559000,-880.78,0.00031232,8]
[425061782,1781447559000,-657.48,0.00031232,8]
[425061793,1781447559000,-616.02,0.00031232,8]
[425061794,1781447559000,-500.0,0.00031232,8]
[425061796,1781447559000,-500.0,0.00031232,8]
[425061797,1781447559000,-500.0,0.00031232,8]
[425061799,1781447559000,-869.12,0.00031232,8]
[425061798,1781447559000,-242.55404741,0.00031232,8]
[425061800,1781447559000,-992.68,0.00031232,8]
[425061801,1781447559000,-1461.98,0.00031232,8]
[425061802,1781447559000,-500.0,0.00031232,8]
[425061803,1781447559000,-3250.13,0.00031232,8]
[425061749,1781447559000,-500.0,0.00031232,8]
[425061804,1781447559000,-500.0,0.00031232,8]
[425061795,1781447559000,-3014.18,0.00031232,8]
[425061780,1781447559000,-500.0,0.00031232,8]
[425061792,1781447559000,-500.0,0.00031232,8]
[425061779,1781447559000,-500.0,0.00031232,8]
[425061751,1781447559000,-597.59,0.00031232,8]
[425061776,1781447559000,-500.0,0.00031232,8]
[425061764,1781447559000,-399.70033242,0.00031232,8]
[425061758,1781447559000,-500.0,0.00031232,8]
[425061757,1781447559000,-663.09,0.00031232,8]
[425061755,1781447559000,-657.3,0.00031232,8]
[425061760,1781447559000,-675.87,0.00031232,8]
[425061762,1781447559000,-1042.52,0.00031232,8]
[425061759,1781447559000,-944.34,0.00031232,8]
[425061763,1781447559000,-881.04,0.00031232,8]
[425061761,1781447559000,-500.0,0.00031232,8]
[425061756,1781447559000,-1514.46,0.00031232,8]
[425061750,1781447559000,-856.87,0.00031232,8]
[425061767,1781447559000,-702.19,0.00031232,8]
[425061777,1781447559000,-500.0,0.00031232,8]
[425061765,1781447559000,-642.31,0.00031232,8]
[425061774,1781447559000,-500.0,0.00031232,8]
[425061775,1781447559000,-500.0,0.00031232,8]
[425061771,1781447559000,-500.0,0.00031232,8]
[425061770,1781447559000,-500.0,0.00031232,8]
[425061773,1781447559000,-815.38,0.00031232,8]
[425061769,1781447559000,-631.21,0.00031232,8]
[425061772,1781447559000,-729.66,0.00031232,8]
[425061766,1781447559000,-408.28446619,0.00031232,8]
[425061768,1781447559000,-845.18,0.00031232,8]
[425061852,1781447560000,-550.82,0.00031232,8]
[425061838,1781447560000,-702.01,0.00031232,8]
[425061836,1781447560000,-605.88,0.00031232,8]
[425061834,1781447560000,-558.94,0.00031232,8]
[425061837,1781447560000,-720.7,0.00031232,8]
[425061839,1781447560000,-500.0,0.00031232,8]
[425061840,1781447560000,-502.0,0.00031232,8]
[425061835,1781447560000,-500.0,0.00031232,8]
[425061842,1781447560000,-682.04,0.00031232,8]
[425061833,1781447560000,-1169.04,0.00031232,8]
[425061841,1781447560000,-2238.28,0.00031232,8]
[425061844,1781447560000,-500.0,0.00031232,8]
[425061847,1781447560000,-2663.08,0.00031232,8]
[425061843,1781447560000,-448.62808401,0.00031232,8]
[425061850,1781447560000,-580.54,0.00031232,8]
[425061848,1781447560000,-2017.64,0.00031232,8]
[425061846,1781447560000,-500.0,0.00031232,8]
[425061849,1781447560000,-623.6,0.00031232,8]
[425061851,1781447560000,-500.0,0.00031232,8]
[425061853,1781447560000,-500.0,0.00031232,8]
[425061855,1781447560000,-842.22,0.00031232,8]
[425061856,1781447560000,-543.63,0.00031232,8]
[425061854,1781447560000,-1157.66,0.00031232,8]
[425061832,1781447560000,-500.0,0.00031232,8]
[425061845,1781447560000,-966.37,0.00031232,8]
[425061831,1781447560000,-592.38,0.00031232,8]
[425061807,1781447560000,-870.51,0.00031232,8]
[425061828,1781447560000,-674.5,0.00031232,8]
[425061863,1781447560000,-1427.79,0.00031232,8]
[425061805,1781447560000,-1539.52,0.00031232,8]
[425061806,1781447560000,-500.0,0.00031232,8]